[Event "Late-Titled-Tuesday-Blitz-April-02-2024"]
[Site "Chess.com"]
[Date "2024.04.02"]
[Round "10"]
[White "KaydenTroffChess"]
[Black "1mbl4"]
[Result "1-0"]
[WhiteElo "2861"]
[BlackElo "2641"]
[TimeControl "180+1"]
[EndTime "15:54:36 PDT"]
[Termination "KaydenTroffChess won by checkmate"]

1. d4 {[%clk 0:03:00.9]} 1... Nf6 {[%clk 0:02:59.3]} 2. Nf3 {[%clk 0:03:01.2]}
2... g6 {[%clk 0:02:59.2]} 3. Bg5 {[%clk 0:03:01.3]} 3... Bg7 {[%clk 0:02:58.9]}
4. Nc3 {[%clk 0:03:01.6]} 4... d5 {[%clk 0:02:58]} 5. Bxf6 {[%clk 0:03:01.6]}
5... Bxf6 {[%clk 0:02:55.9]} 6. e4 {[%clk 0:03:01.7]} 6... dxe4 {[%clk
0:02:54.7]} 7. Nxe4 {[%clk 0:03:02.6]} 7... Bg7 {[%clk 0:02:53.7]} 8. c3 {[%clk
0:03:02.4]} 8... O-O {[%clk 0:02:53.4]} 9. Bc4 {[%clk 0:03:02.5]} 9... b6 {[%clk
0:02:48.9]} 10. O-O {[%clk 0:03:02.3]} 10... Bb7 {[%clk 0:02:48.8]} 11. Re1
{[%clk 0:03:02]} 11... Nd7 {[%clk 0:02:46.3]} 12. Qb3 {[%clk 0:02:46.8]} 12...
h6 {[%clk 0:02:32.6]} 13. Re3 {[%clk 0:02:34.5]} 13... c5 {[%clk 0:02:26.6]} 14.
d5 {[%clk 0:02:27.9]} 14... Nf6 {[%clk 0:01:40.7]} 15. Rd1 {[%clk 0:02:24.4]}
15... Nxe4 {[%clk 0:01:31.5]} 16. Rxe4 {[%clk 0:02:24]} 16... Qd6 {[%clk
0:01:31.4]} 17. Ree1 {[%clk 0:01:30.6]} 17... Rad8 {[%clk 0:01:25.1]} 18. Qc2
{[%clk 0:01:18.2]} 18... Bf6 {[%clk 0:01:10.2]} 19. Nd2 {[%clk 0:00:59.2]} 19...
Kg7 {[%clk 0:01:09]} 20. Ne4 {[%clk 0:00:58.6]} 20... Qf4 {[%clk 0:01:06.9]} 21.
Re3 {[%clk 0:00:46.9]} 21... a6 {[%clk 0:00:56.4]} 22. a4 {[%clk 0:00:36.1]}
22... b5 {[%clk 0:00:45.2]} 23. axb5 {[%clk 0:00:34.1]} 23... axb5 {[%clk
0:00:46.1]} 24. Qb3 {[%clk 0:00:30.3]} 24... bxc4 {[%clk 0:00:39.2]} 25. Qxb7
{[%clk 0:00:30]} 25... Rb8 {[%clk 0:00:39.6]} 26. Qa7 {[%clk 0:00:29.1]} 26...
Rxb2 {[%clk 0:00:39.3]} 27. Qxc5 {[%clk 0:00:27.4]} 27... Rfb8 {[%clk
0:00:36.7]} 28. Ree1 {[%clk 0:00:20.1]} 28... Be5 {[%clk 0:00:31.3]} 29. g3
{[%clk 0:00:19.5]} 29... Qf3 {[%clk 0:00:31.2]} 30. Qe3 {[%clk 0:00:19.9]} 30...
Qxe3 {[%clk 0:00:30.3]} 31. Rxe3 {[%clk 0:00:20.8]} 31... Rc2 {[%clk 0:00:29.1]}
32. Rd2 {[%clk 0:00:17.1]} 32... Rb1+ {[%clk 0:00:25.6]} 33. Kg2 {[%clk
0:00:17]} 33... Rbc1 {[%clk 0:00:25]} 34. Rxc2 {[%clk 0:00:15.7]} 34... Rxc2
{[%clk 0:00:25.9]} 35. Kf1 {[%clk 0:00:15.3]} 35... Kf8 {[%clk 0:00:24.2]} 36.
Ke1 {[%clk 0:00:14]} 36... f5 {[%clk 0:00:23.9]} 37. Kd1 {[%clk 0:00:11.8]}
37... Ra2 {[%clk 0:00:22.7]} 38. Nd2 {[%clk 0:00:12.1]} 38... Bf6 {[%clk
0:00:18.8]} 39. h4 {[%clk 0:00:11]} 39... g5 {[%clk 0:00:18.2]} 40. hxg5 {[%clk
0:00:10.5]} 40... hxg5 {[%clk 0:00:19.1]} 41. f4 {[%clk 0:00:10.1]} 41... gxf4
{[%clk 0:00:18.7]} 42. gxf4 {[%clk 0:00:11]} 42... Ra5 {[%clk 0:00:18.3]} 43. d6
{[%clk 0:00:10.3]} 43... exd6 {[%clk 0:00:17.1]} 44. Nxc4 {[%clk 0:00:10.8]}
44... d5 {[%clk 0:00:16.3]} 45. Nxa5 {[%clk 0:00:10.6]} 45... d4 {[%clk
0:00:15.3]} 46. cxd4 {[%clk 0:00:10.4]} 46... Bxd4 {[%clk 0:00:16.2]} 47. Rd3
{[%clk 0:00:10.9]} 47... Bc5 {[%clk 0:00:15.4]} 48. Nc4 {[%clk 0:00:11]} 48...
Kf7 {[%clk 0:00:15.2]} 49. Ke2 {[%clk 0:00:11.3]} 49... Ke6 {[%clk 0:00:15.3]}
50. Kf3 {[%clk 0:00:11.6]} 50... Ba7 {[%clk 0:00:14.9]} 51. Ne3 {[%clk
0:00:11.9]} 51... Bb8 {[%clk 0:00:15.1]} 52. Rd5 {[%clk 0:00:11.4]} 52... Bd6
{[%clk 0:00:14.1]} 53. Rxf5 {[%clk 0:00:11.6]} 53... Bc7 {[%clk 0:00:14]} 54.
Rb5 {[%clk 0:00:11.7]} 54... Bd6 {[%clk 0:00:14.1]} 55. Ke4 {[%clk 0:00:12.3]}
55... Be7 {[%clk 0:00:14]} 56. f5+ {[%clk 0:00:12.8]} 56... Kd7 {[%clk
0:00:14.2]} 57. Rb7+ {[%clk 0:00:12.4]} 57... Ke8 {[%clk 0:00:14.1]} 58. Kd5
{[%clk 0:00:12.8]} 58... Bd8 {[%clk 0:00:14.1]} 59. Ke6 {[%clk 0:00:13]} 59...
Kf8 {[%clk 0:00:14.3]} 60. Rb8 {[%clk 0:00:11.9]} 60... Ke8 {[%clk 0:00:14.3]}
61. f6 {[%clk 0:00:12.3]} 61... Kf8 {[%clk 0:00:01.2]} 62. Rxd8# {[%clk
0:00:01.7]} 1-0

[Event "Late-Titled-Tuesday-Blitz-April-02-2024"]
[Site "Chess.com"]
[Date "2024.04.02"]
[Round "10"]
[White "microbear"]
[Black "cthake"]
[Result "1-0"]
[WhiteElo "2387"]
[BlackElo "1815"]
[TimeControl "180+1"]
[EndTime "15:55:03 PDT"]
[Termination "microbear won on time"]

1. e4 {[%clk 0:02:59.1]} 1... e6 {[%clk 0:02:58.8]} 2. d4 {[%clk 0:02:56.6]}
2... d5 {[%clk 0:02:59.4]} 3. e5 {[%clk 0:02:56.8]} 3... c5 {[%clk 0:02:58.6]}
4. c3 {[%clk 0:02:54.6]} 4... Nc6 {[%clk 0:02:58.6]} 5. Nf3 {[%clk 0:02:46.5]}
5... Bd7 {[%clk 0:02:58.9]} 6. Be2 {[%clk 0:02:42.6]} 6... Qb6 {[%clk
0:02:58.6]} 7. O-O {[%clk 0:02:34.2]} 7... cxd4 {[%clk 0:02:57.9]} 8. cxd4
{[%clk 0:02:33.4]} 8... Rc8 {[%clk 0:02:57.5]} 9. Nc3 {[%clk 0:02:30.5]} 9...
Na5 {[%clk 0:02:51.1]} 10. Rb1 {[%clk 0:02:05.1]} 10... Nc4 {[%clk 0:02:47.7]}
11. b3 {[%clk 0:02:00.2]} 11... Nxe5 {[%clk 0:02:43]} 12. Nxe5 {[%clk
0:01:58.2]} 12... Rxc3 {[%clk 0:02:42.8]} 13. Nxd7 {[%clk 0:01:43]} 13... Kxd7
{[%clk 0:02:42.7]} 14. Bb2 {[%clk 0:01:40]} 14... Rc8 {[%clk 0:02:31.5]} 15. Qd3
{[%clk 0:01:33.5]} 15... Nf6 {[%clk 0:02:28.3]} 16. Rfe1 {[%clk 0:01:21]} 16...
Bd6 {[%clk 0:02:27.7]} 17. g4 {[%clk 0:01:11.2]} 17... h6 {[%clk 0:02:26.1]} 18.
Qe3 {[%clk 0:01:07.3]} 18... Qc7 {[%clk 0:02:04.8]} 19. h3 {[%clk 0:00:48.7]}
19... Rhe8 {[%clk 0:01:32.3]} 20. Bb5+ {[%clk 0:00:42.2]} 20... Ke7 {[%clk
0:01:29.3]} 21. Bxe8 {[%clk 0:00:41.2]} 21... Kxe8 {[%clk 0:01:25.7]} 22. Rbc1
{[%clk 0:00:37.2]} 22... Qb8 {[%clk 0:01:24.7]} 23. Rxc8+ {[%clk 0:00:36.4]}
23... Qxc8 {[%clk 0:01:24.4]} 24. Rc1 {[%clk 0:00:34.9]} 24... Qd7 {[%clk
0:01:22.6]} 25. Qc3 {[%clk 0:00:24.7]} 25... Ke7 {[%clk 0:01:18.2]} 26. b4
{[%clk 0:00:20.2]} 26... Ne4 {[%clk 0:01:17.1]} 27. Qe1 {[%clk 0:00:18.2]} 27...
a6 {[%clk 0:01:14.7]} 28. a3 {[%clk 0:00:17.9]} 28... b5 {[%clk 0:01:13.1]} 29.
Kg2 {[%clk 0:00:17.8]} 29... g6 {[%clk 0:01:06]} 30. f3 {[%clk 0:00:18.1]} 30...
Ng5 {[%clk 0:01:02.4]} 31. Qc3 {[%clk 0:00:15.1]} 31... h5 {[%clk 0:00:59.2]}
32. Qc8 {[%clk 0:00:13]} 32... hxg4 {[%clk 0:00:54.5]} 33. Qxd7+ {[%clk
0:00:11.6]} 33... Kxd7 {[%clk 0:00:54]} 34. hxg4 {[%clk 0:00:12.5]} 34... Bf4
{[%clk 0:00:50]} 35. Rh1 {[%clk 0:00:12.8]} 35... Be3 {[%clk 0:00:45.5]} 36. Bc1
{[%clk 0:00:12.6]} 36... Bxc1 {[%clk 0:00:39.8]} 37. Rxc1 {[%clk 0:00:13.5]}
37... f5 {[%clk 0:00:38.2]} 38. gxf5 {[%clk 0:00:12.7]} 38... gxf5 {[%clk
0:00:38.3]} 39. Rh1 {[%clk 0:00:13.1]} 39... Nf7 {[%clk 0:00:25.9]} 40. Rh7
{[%clk 0:00:12.4]} 40... Ke7 {[%clk 0:00:26.3]} 41. Kg3 {[%clk 0:00:13]} 41...
Kf6 {[%clk 0:00:26.3]} 42. Rh1 {[%clk 0:00:12.8]} 42... Nd6 {[%clk 0:00:25.6]}
43. Rh8 {[%clk 0:00:11.5]} 43... Nc4 {[%clk 0:00:25.2]} 44. Ra8 {[%clk
0:00:11.7]} 44... Nxa3 {[%clk 0:00:21.7]} 45. Rxa6 {[%clk 0:00:11.8]} 45... Nc2
{[%clk 0:00:21.9]} 46. Rb6 {[%clk 0:00:10.1]} 46... Nxb4 {[%clk 0:00:21]} 47.
Rxb5 {[%clk 0:00:09.9]} 47... Nc2 {[%clk 0:00:21.2]} 48. Ra5 {[%clk 0:00:08.3]}
48... Nxd4 {[%clk 0:00:21.2]} 49. Ra4 {[%clk 0:00:08.8]} 49... Ne2+ {[%clk
0:00:19.9]} 50. Kf2 {[%clk 0:00:08.9]} 50... Nc3 {[%clk 0:00:19.4]} 51. Ra6
{[%clk 0:00:08.5]} 51... Ke5 {[%clk 0:00:17.4]} 52. Ra3 {[%clk 0:00:07.4]} 52...
Nb5 {[%clk 0:00:16.9]} 53. Ra5 {[%clk 0:00:07.5]} 53... Nd4 {[%clk 0:00:15.5]}
54. Ke3 {[%clk 0:00:07.8]} 54... Nc2+ {[%clk 0:00:13.3]} 55. Kd3 {[%clk
0:00:07.1]} 55... Ne1+ {[%clk 0:00:12.9]} 56. Ke2 {[%clk 0:00:07.2]} 56... Ng2
{[%clk 0:00:13]} 57. Kf2 {[%clk 0:00:06.4]} 57... Nf4 {[%clk 0:00:13]} 58. Ke3
{[%clk 0:00:06.7]} 58... Ng6 {[%clk 0:00:11.8]} 59. Ra4 {[%clk 0:00:06.2]} 59...
Ne7 {[%clk 0:00:06.5]} 60. f4+ {[%clk 0:00:06.4]} 60... Kf6 {[%clk 0:00:04.7]}
61. Ra6 {[%clk 0:00:06]} 61... Ng6 {[%clk 0:00:04.5]} 62. Ra7 {[%clk 0:00:05.4]}
62... Ne7 {[%clk 0:00:04.3]} 63. Ra8 {[%clk 0:00:05.6]} 63... Ng6 {[%clk
0:00:04.1]} 64. Kf3 {[%clk 0:00:05.6]} 64... Ne7 {[%clk 0:00:04.2]} 65. Ra7
{[%clk 0:00:05.8]} 65... Ng6 {[%clk 0:00:04.3]} 66. Ra1 {[%clk 0:00:06.5]} 66...
Ne7 {[%clk 0:00:04]} 67. Rb1 {[%clk 0:00:06.4]} 67... Ng6 {[%clk 0:00:03.7]} 68.
Rh1 {[%clk 0:00:07.3]} 68... Ne7 {[%clk 0:00:03.2]} 69. Rh7 {[%clk 0:00:07.8]}
69... Ng6 {[%clk 0:00:03.1]} 70. Rh6 {[%clk 0:00:07.7]} 70... Kg7 {[%clk
0:00:02.6]} 71. Rh1 {[%clk 0:00:08.2]} 71... Kf6 {[%clk 0:00:02.6]} 72. Rc1
{[%clk 0:00:08.5]} 72... Ne7 {[%clk 0:00:01.6]} 73. Rb1 {[%clk 0:00:08.7]} 73...
Nc6 {[%clk 0:00:01.3]} 74. Rg1 {[%clk 0:00:08.8]} 74... Nd4+ {[%clk 0:00:01.2]}
75. Ke3 {[%clk 0:00:09.5]} 75... Nc2+ {[%clk 0:00:01.1]} 76. Kd3 {[%clk
0:00:10.1]} 76... Nb4+ {[%clk 0:00:01.3]} 77. Kd4 {[%clk 0:00:10.7]} 77... Nc6+
{[%clk 0:00:01.4]} 78. Kc5 {[%clk 0:00:10.5]} 78... Ne7 {[%clk 0:00:01.4]} 79.
Rh1 {[%clk 0:00:10.7]} 79... Ng6 {[%clk 0:00:01.3]} 80. Rg1 {[%clk 0:00:10.8]}
1-0

[Event "Late-Titled-Tuesday-Blitz-April-02-2024"]
[Site "Chess.com"]
[Date "2024.04.02"]
[Round "10"]
[White "TigrVShlyape"]
[Black "Polish_fighter3000"]
[Result "0-1"]
[WhiteElo "2950"]
[BlackElo "3155"]
[TimeControl "180+1"]
[EndTime "15:56:07 PDT"]
[Termination "Polish_fighter3000 won on time"]

1. d4 {[%clk 0:03:00.9]} 1... Nf6 {[%clk 0:03:00.2]} 2. Bf4 {[%clk 0:03:00.4]}
2... d5 {[%clk 0:03:00.7]} 3. e3 {[%clk 0:03:00.6]} 3... c5 {[%clk 0:03:01]} 4.
c3 {[%clk 0:03:00.8]} 4... Nc6 {[%clk 0:03:00.8]} 5. Nd2 {[%clk 0:03:01]} 5...
Bf5 {[%clk 0:02:48]} 6. Qb3 {[%clk 0:02:59.6]} 6... Qc8 {[%clk 0:02:48]} 7. a4
{[%clk 0:02:59.8]} 7... e6 {[%clk 0:02:44]} 8. Ngf3 {[%clk 0:02:59.8]} 8... Be7
{[%clk 0:02:40.9]} 9. Be2 {[%clk 0:02:59.4]} 9... h6 {[%clk 0:02:25.5]} 10. h3
{[%clk 0:02:57.1]} 10... O-O {[%clk 0:02:24.8]} 11. O-O {[%clk 0:02:56.4]} 11...
a6 {[%clk 0:01:59.5]} 12. a5 {[%clk 0:02:51.8]} 12... c4 {[%clk 0:01:36.8]} 13.
Qa2 {[%clk 0:02:50.5]} 13... Qd7 {[%clk 0:01:17.7]} 14. b3 {[%clk 0:02:49]}
14... cxb3 {[%clk 0:01:17.1]} 15. Qxb3 {[%clk 0:02:43.5]} 15... Rfc8 {[%clk
0:01:14.6]} 16. Rfc1 {[%clk 0:02:42.8]} 16... Bd8 {[%clk 0:01:13]} 17. Ne5
{[%clk 0:02:42.9]} 17... Nxe5 {[%clk 0:01:09.7]} 18. Bxe5 {[%clk 0:02:43.1]}
18... Ne4 {[%clk 0:01:05.1]} 19. Nxe4 {[%clk 0:02:41.5]} 19... Bxe4 {[%clk
0:01:06]} 20. f3 {[%clk 0:02:30.9]} 20... Bg6 {[%clk 0:01:04.1]} 21. c4 {[%clk
0:02:31.2]} 21... dxc4 {[%clk 0:00:58]} 22. Bxc4 {[%clk 0:02:31.2]} 22... Bxa5
{[%clk 0:00:53.9]} 23. Rxa5 {[%clk 0:02:26.4]} 23... b5 {[%clk 0:00:53.9]} 24.
Kh2 {[%clk 0:02:08.6]} 24... Qd8 {[%clk 0:00:40.3]} 25. Raa1 {[%clk 0:01:51.7]}
25... bxc4 {[%clk 0:00:40]} 26. Rxc4 {[%clk 0:01:51.8]} 26... f6 {[%clk
0:00:33.9]} 27. Bg3 {[%clk 0:01:43.4]} 27... Rxc4 {[%clk 0:00:17.3]} 28. Qxc4
{[%clk 0:01:43]} 28... Qd5 {[%clk 0:00:17.8]} 29. Qxd5 {[%clk 0:01:16.8]} 29...
exd5 {[%clk 0:00:18.7]} 30. Ra5 {[%clk 0:01:16.6]} 30... Bd3 {[%clk 0:00:15.3]}
31. Rxd5 {[%clk 0:01:14.2]} 31... a5 {[%clk 0:00:15.1]} 32. Rc5 {[%clk
0:01:06.5]} 32... a4 {[%clk 0:00:14.7]} 33. Rc3 {[%clk 0:01:06.9]} 33... a3
{[%clk 0:00:14.9]} 34. Rxd3 {[%clk 0:01:05.7]} 34... a2 {[%clk 0:00:15.1]} 35.
Rd1 {[%clk 0:01:06.2]} 35... a1=Q {[%clk 0:00:15.7]} 36. Rxa1 {[%clk 0:01:06.3]}
36... Rxa1 {[%clk 0:00:16.5]} 37. e4 {[%clk 0:01:05.3]} 37... Rd1 {[%clk
0:00:15.2]} 38. d5 {[%clk 0:01:05.5]} 38... f5 {[%clk 0:00:14.1]} 39. exf5
{[%clk 0:00:42.1]} 39... Rxd5 {[%clk 0:00:13.6]} 40. f6 {[%clk 0:00:42.6]} 40...
gxf6 {[%clk 0:00:07.2]} 41. Bf4 {[%clk 0:00:43]} 41... h5 {[%clk 0:00:06.6]} 42.
Kg3 {[%clk 0:00:40.1]} 42... Rd4 {[%clk 0:00:06.4]} 43. h4 {[%clk 0:00:37.8]}
43... Kf7 {[%clk 0:00:06.3]} 44. Be3 {[%clk 0:00:37.2]} 44... Ra4 {[%clk
0:00:06.2]} 45. Bf4 {[%clk 0:00:33.4]} 45... Ke6 {[%clk 0:00:06.4]} 46. Bc7
{[%clk 0:00:32.6]} 46... Rc4 {[%clk 0:00:05.7]} 47. Bb8 {[%clk 0:00:32.7]} 47...
Rb4 {[%clk 0:00:04.2]} 48. Bc7 {[%clk 0:00:32.2]} 48... Kd7 {[%clk 0:00:03.7]}
49. Bf4 {[%clk 0:00:30.8]} 49... Rd4 {[%clk 0:00:02.9]} 50. Bb8 {[%clk
0:00:29.7]} 50... Rc4 {[%clk 0:00:03.1]} 51. Bf4 {[%clk 0:00:29.2]} 51... Rb4
{[%clk 0:00:03.6]} 52. Bd2 {[%clk 0:00:27.4]} 52... Rb2 {[%clk 0:00:03.1]} 53.
Bc3 {[%clk 0:00:27.2]} 53... Rb6 {[%clk 0:00:03.7]} 54. Kf4 {[%clk 0:00:25.9]}
54... Ke6 {[%clk 0:00:03.8]} 55. g4 {[%clk 0:00:24]} 55... Rc6 {[%clk
0:00:04.3]} 56. Bd2 {[%clk 0:00:23]} 56... Rc4+ {[%clk 0:00:03.6]} 57. Kg3
{[%clk 0:00:23.1]} 57... Rd4 {[%clk 0:00:03.1]} 58. Bf4 {[%clk 0:00:22.4]} 58...
hxg4 {[%clk 0:00:02.4]} 59. fxg4 {[%clk 0:00:22.5]} 59... Rd3+ {[%clk
0:00:02.8]} 60. Kg2 {[%clk 0:00:22.3]} 60... Kd5 {[%clk 0:00:03.2]} 61. h5
{[%clk 0:00:21.9]} 61... Ke4 {[%clk 0:00:03.6]} 62. Bg3 {[%clk 0:00:20.5]} 62...
f5 {[%clk 0:00:03]} 63. gxf5 {[%clk 0:00:20.1]} 63... Kxf5 {[%clk 0:00:03.9]}
64. h6 {[%clk 0:00:19.8]} 64... Kg6 {[%clk 0:00:04.2]} 65. Bf4 {[%clk 0:00:20]}
65... Kf5 {[%clk 0:00:03.6]} 66. h7 {[%clk 0:00:18.4]} 66... Rd8 {[%clk
0:00:03.1]} 67. Kf3 {[%clk 0:00:18.1]} 67... Rh8 {[%clk 0:00:03.5]} 68. Be3
{[%clk 0:00:17.5]} 68... Rxh7 {[%clk 0:00:04.4]} 69. Bf2 {[%clk 0:00:16.8]}
69... Rh3+ {[%clk 0:00:04.8]} 70. Bg3 {[%clk 0:00:16.1]} 70... Kg5 {[%clk
0:00:04.9]} 71. Kg2 {[%clk 0:00:16]} 71... Kg4 {[%clk 0:00:05.8]} 72. Bf2 {[%clk
0:00:16.3]} 72... Rb3 {[%clk 0:00:06.2]} 73. Bg1 {[%clk 0:00:16.1]} 73... Rb2+
{[%clk 0:00:06.1]} 74. Bf2 {[%clk 0:00:16.4]} 74... Kf4 {[%clk 0:00:06.1]} 75.
Kg1 {[%clk 0:00:15.5]} 75... Kf3 {[%clk 0:00:06.4]} 76. Bc5 {[%clk 0:00:14.7]}
76... Rd2 {[%clk 0:00:05.8]} 77. Kh1 {[%clk 0:00:14.1]} 77... Kg3 {[%clk
0:00:05.4]} 78. Bb6 {[%clk 0:00:12.6]} 78... Rc2 {[%clk 0:00:05]} 79. Ba7 {[%clk
0:00:10.7]} 79... Rc1+ {[%clk 0:00:03.8]} 80. Bg1 {[%clk 0:00:10.3]} 80... Rc6
{[%clk 0:00:04]} 81. Be3 {[%clk 0:00:09.8]} 81... Kf3 {[%clk 0:00:03.6]} 82. Bd4
{[%clk 0:00:09.2]} 82... Rg6 {[%clk 0:00:02.5]} 83. Bc5 {[%clk 0:00:08.6]} 83...
Rg5 {[%clk 0:00:02.5]} 84. Bb6 {[%clk 0:00:08]} 84... Rd5 {[%clk 0:00:02.1]} 85.
Ba7 {[%clk 0:00:07.5]} 85... Rd2 {[%clk 0:00:02.2]} 86. Bb6 {[%clk 0:00:07.1]}
86... Rc2 {[%clk 0:00:02.1]} 87. Ba7 {[%clk 0:00:06.7]} 87... Kg4 {[%clk
0:00:02.3]} 88. Bb6 {[%clk 0:00:06]} 88... Kg3 {[%clk 0:00:01.8]} 89. Ba7 {[%clk
0:00:05.4]} 89... Rc1+ {[%clk 0:00:01.9]} 90. Bg1 {[%clk 0:00:05.1]} 90... Kf3
{[%clk 0:00:02.5]} 91. Kh2 {[%clk 0:00:04.7]} 91... Rc6 {[%clk 0:00:02.7]} 92.
Kh1 {[%clk 0:00:04.8]} 92... Kg3 {[%clk 0:00:02.2]} 93. Bh2+ {[%clk 0:00:04.4]}
93... Kf2 {[%clk 0:00:02.6]} 94. Bg1+ {[%clk 0:00:04.3]} 94... Kf1 {[%clk
0:00:02.6]} 95. Bh2 {[%clk 0:00:04.6]} 95... Rc5 {[%clk 0:00:03]} 96. Bg3 {[%clk
0:00:04.5]} 96... Rh5+ {[%clk 0:00:03.4]} 97. Bh2 {[%clk 0:00:04.4]} 97... Rg5
{[%clk 0:00:04]} 98. Bf4 {[%clk 0:00:04.3]} 98... Rg4 {[%clk 0:00:03.9]} 99. Be5
{[%clk 0:00:03.8]} 99... Kf2 {[%clk 0:00:04.1]} 100. Bc7 {[%clk 0:00:03.6]}
100... Rg1+ {[%clk 0:00:02.2]} 101. Kh2 {[%clk 0:00:03]} 101... Rg7 {[%clk
0:00:02.8]} 102. Bb6+ {[%clk 0:00:02.6]} 102... Kf3 {[%clk 0:00:02.8]} 103. Kh1
{[%clk 0:00:02.4]} 103... Kg3 {[%clk 0:00:02.2]} 104. Bd4 {[%clk 0:00:01.6]}
104... Rd7 {[%clk 0:00:02.3]} 105. Bc5 {[%clk 0:00:01.4]} 105... Rd5 {[%clk
0:00:01.8]} 0-1